[Event "SVK Amateur-ch 2020"]
[Site "Topolcany"]
[Date "2020.07.13"]
[Round "7.9"]
[White "Trangos, Miroslav"]
[Black "Mesaros, Jan"]
[Result "1-0"]
[ECO "E76"]
[WhiteElo "1971"]
[BlackElo "1782"]
[Annotator "ChessBase"]
[PlyCount "99"]
[EventDate "2020.07.10"]
[EventType "swiss"]
[EventCountry "SVK"]
[SourceTitle "playchess.com"]
[Source "ChessBase"]
[SourceQuality "1"]
[TimeControl "3600+30"]

1. d4 {[%emt 0:00:00]} Nf6 {[%emt 0:00:00]} 2. c4 {[%emt 0:00:00]} g6 {[%emt 0:00:04]} 3. Nc3 {[%emt 0:00:00]} Bg7 {[%emt 0:00:10]} 4. e4 {[%emt 0:00:03]} d6 {[%emt 0:00:08]} 5. f4 {[%emt 0:00:04]} O-O {[%emt 0:00:30]} 6. Nf3 {[%emt 0:00:09]} c5 {[%emt 0:00:06]} 7. e5 {[%emt 0:01:54]} dxe5 {[%emt 0:00:17]} 8. dxe5 {[%emt 0:00:17]} Qxd1+ {[%emt 0:00:08]} 9. Nxd1 {[%emt 0:01:15]} Ne8 {[%emt 0:01:01]} 10. Be3 {[%emt 0:01:07]} Na6 {[%emt 0:00:52]} 11. Nc3 {[%emt 0:00:42]} Nec7 {[%emt 0:00:13]} 12. O-O-O {[%emt 0:00:42]} Be6 {[%emt 0:03:09]} 13. Be2 {[%emt 0:04:28]} Rad8 {[%emt 0:01:00]} 14. Ng5 {[%emt 0:00:52]} b6 {[%emt 0:00:16]} 15. b3 {[%emt 0:01:11]} Nb4 {[%emt 0:00:53]} 16. Rxd8 {[%emt 0:04:09]} Rxd8 {[%emt 0:00:06]} 17. Rd1 {[%emt 0:03:14]} Rxd1+ {[%emt 0:00:26]} 18. Kxd1 {[%emt 0:00:20]} Bf5 {[%emt 0:01:19]} 19. g4 {[%emt 0:02:30]} Be6 {[%emt 0:00:53]} 20. Bf3 {[%emt 0:01:52]} Kf8 {[%emt 0:00:40]} 21. Nxh7+ {[%emt 0:00:15]} Ke8 {[%emt 0:00:26]} 22. Ng5 {[%emt 0:00:36]} Bd7 {[%emt 0:00:13]} 23. a3 {[%emt 0:03:49]} Nba6 {[%emt 0:00:09]} 24. Kd2 {[%emt 0:01:31]} Nb8 {[%emt 0:02:24]} 25. h3 {[%emt 0:00:53]} Nc6 {[%emt 0:04:04]} 26. Be4 {[%emt 0:02:14]} e6 {[%emt 0:02:23]} 27. Bc2 {[%emt 0:00:40]} Ke7 {[%emt 0:05:30]} 28. h4 {[%emt 0:02:58]} Be8 {[%emt 0:00:07]} 29. Nce4 {[%emt 0:01:15]} Nd8 {[%emt 0:01:14]} 30. Nh7 {[%emt 0:03:01]} Bc6 {[%emt 0:00:34]} 31. Nef6 {[%emt 0:05:39]} Ne8 {[%emt 0:06:54]} 32. Ng8+ {[%emt 0:00:31]} Kd7 {[%emt 0:00:30]} 33. Ke2 {[%emt 0:01:28]} Nb7 {[%emt 0:01:37]} 34. Bd2 {[%emt 0:00:27]} b5 {[%emt 0:00:56]} 35. Ke3 {[%emt 0:00:10]} bxc4 {[%emt 0:00:52]} 36. bxc4 {[%emt 0:00:04]} a5 {[%emt 0:00:26]} 37. Be4 {[%emt 0:00:57]} a4 {[%emt 0:00:39]} 38. h5 {[%emt 0:01:13]} gxh5 {[%emt 0:00:39]} 39. gxh5 {[%emt 0:00:08]} Nd8 {[%emt 0:00:27]} 40. h6 {[%emt 0:00:25]} Bh8 {[%emt 0:00:13]} 41. Bc3 {[%emt 0:00:59]} Bxe4 {[%emt 0:00:49]} 42. Kxe4 {[%emt 0:00:14]} Nc6 {[%emt 0:00:14]} 43. Nf8+ {[%emt 0:02:32]} Kd8 {[%emt 0:00:29]} 44. f5 {[%emt 0:00:28]} exf5+ {[%emt 0:00:11]} 45. Kxf5 {[%emt 0:00:12]} Ne7+ {[%emt 0:00:26]} 46. Nxe7 {[%emt 0:00:09]} Kxe7 {[%emt 0:00:19]} 47. Nh7 {[%emt 0:00:54]} Nc7 {[%emt 0:00:21]} 48. Ng5 {[%emt 0:00:53]} Na6 {[%emt 0:01:48]} 49. Ba5 {[%emt 0:02:01]} f6 {[%emt 0:00:43]} 50. Bd8+ {[%emt 0:00:56]} 1-0

[Event "SVK Amateur-ch 2020"]
[Site "Topolcany"]
[Date "2020.07.13"]
[Round "7.10"]
[White "Tatliak, Stefan"]
[Black "Slaba, Andrea"]
[Result "0-1"]
[ECO "C04"]
[WhiteElo "1704"]
[BlackElo "1970"]
[Annotator "ChessBase"]
[PlyCount "80"]
[EventDate "2020.07.10"]
[EventType "swiss"]
[EventCountry "SVK"]
[SourceTitle "playchess.com"]
[Source "ChessBase"]
[SourceQuality "1"]
[TimeControl "3600+30"]

1. e4 {[%emt 0:00:00]} e6 {[%emt 0:00:00]} 2. d4 {[%emt 0:00:00]} d5 {[%emt 0:00:00]} 3. c3 {[%emt 0:00:06]} Nc6 {[%emt 0:00:00]} 4. Nd2 {[%emt 0:09:38]} e5 {[%emt 0:00:46]} 5. Ngf3 {[%emt 0:00:30]} Bg4 {[%emt 0:02:57]} 6. exd5 {[%emt 0:00:15]} Qxd5 {[%emt 0:01:13]} 7. Bc4 {[%emt 0:01:10]} Qd7 {[%emt 0:05:35]} 8. Qe2 {[%emt 0:09:43]} O-O-O {[%emt 0:02:17]} 9. Bb5 {[%emt 0:02:49]} exd4 {[%emt 0:01:42]} 10. Bxc6 {[%emt 0:00:30]} Qxc6 {[%emt 0:05:09]} 11. O-O {[%emt 0:04:40]} dxc3 {[%emt 0:00:31]} 12. bxc3 {[%emt 0:00:30]} Nf6 {[%emt 0:00:30]} 13. h3 {[%emt 0:00:30]} Bxf3 {[%emt 0:01:04]} 14. Nxf3 {[%emt 0:00:58]} Bd6 {[%emt 0:01:58]} 15. Rb1 {[%emt 0:03:56]} Rhe8 {[%emt 0:00:49]} 16. Qb2 {[%emt 0:01:30]} Be5 {[%emt 0:05:07]} 17. Nxe5 {[%emt 0:01:28]} Rxe5 {[%emt 0:00:02]} 18. Be3 {[%emt 0:02:32]} a6 {[%emt 0:01:43]} 19. Bd4 {[%emt 0:01:22]} Rg5 {[%emt 0:02:26]} 20. f3 {[%emt 0:00:48]} Rb5 {[%emt 0:02:03]} 21. Qf2 {[%emt 0:00:18]} Rxb1 {[%emt 0:02:23]} 22. Rxb1 {[%emt 0:01:17]} Kb8 {[%emt 0:01:42]} 23. Qg3 {[%emt 0:02:19]} g6 {[%emt 0:11:48]} 24. Rb6 {[%emt 0:00:51]} Nh5 {[%emt 0:01:39]} 25. Qe5 {[%emt 0:02:02]} Qd5 {[%emt 0:02:36]} 26. Qxd5 {[%emt 0:03:36]} Rxd5 {[%emt 0:00:02]} 27. Rb2 {[%emt 0:00:17]} Nf4 {[%emt 0:00:54]} 28. Kh2 {[%emt 0:00:45]} Ne6 {[%emt 0:00:07]} 29. Bf2 {[%emt 0:01:05]} Rd3 {[%emt 0:00:20]} 30. Rc2 {[%emt 0:00:29]} b6 {[%emt 0:00:30]} 31. Bg3 {[%emt 0:01:25]} Kb7 {[%emt 0:00:14]} 32. Be5 {[%emt 0:01:33]} Rd5 {[%emt 0:01:15]} 33. Re2 {[%emt 0:01:30]} b5 {[%emt 0:00:59]} 34. h4 {[%emt 0:00:38]} c5 {[%emt 0:01:14]} 35. g3 {[%emt 0:02:19]} Kc6 {[%emt 0:00:39]} 36. f4 {[%emt 0:00:05]} a5 {[%emt 0:01:17]} 37. a4 {[%emt 0:01:42]} b4 {[%emt 0:02:17]} 38. cxb4 {[%emt 0:00:18]} cxb4 {[%emt 0:00:24]} 39. Bf6 {[%emt 0:01:15]} b3 {[%emt 0:01:40]} 40. Re3 {[%emt 0:00:53]} Nc5 {[%emt 0:01:34]} 0-1

[Event "SVK Amateur-ch 2020"]
[Site "Topolcany"]
[Date "2020.07.13"]
[Round "7.11"]
[White "Matis, Tibor"]
[Black "Kostic, Ivan"]
[Result "1-0"]
[ECO "C41"]
[WhiteElo "1942"]
[BlackElo "1694"]
[Annotator "ChessBase"]
[PlyCount "67"]
[EventDate "2020.07.10"]
[EventType "swiss"]
[EventCountry "SVK"]
[SourceTitle "playchess.com"]
[Source "ChessBase"]
[SourceQuality "1"]
[TimeControl "3600+30"]

1. e4 {[%emt 0:00:00]} e5 {[%emt 0:00:04]} 2. Nf3 {[%emt 0:00:08]} d6 {[%emt 0:00:30]} 3. Bc4 {[%emt 0:00:21]} h6 {[%emt 0:00:19]} 4. d4 {[%emt 0:00:27]} exd4 {[%emt 0:00:12]} 5. Nxd4 {[%emt 0:00:15]} Nf6 {[%emt 0:00:37]} 6. Nc3 {[%emt 0:00:06]} g6 {[%emt 0:00:57]} 7. O-O {[%emt 0:00:16]} Bg7 {[%emt 0:00:48]} 8. f4 {[%emt 0:00:40]} O-O {[%emt 0:01:15]} 9. h3 {[%emt 0:06:59]} Kh7 {[%emt 0:01:11]} 10. Qd3 {[%emt 0:04:59]} Nbd7 {[%emt 0:02:05]} 11. Nb3 {[%emt 0:02:46]} a6 {[%emt 0:01:12]} 12. a4 {[%emt 0:00:20]} Nb6 {[%emt 0:01:33]} 13. Be3 {[%emt 0:00:26]} Nxc4 {[%emt 0:00:17]} 14. Qxc4 {[%emt 0:00:11]} Be6 {[%emt 0:02:14]} 15. Qd3 {[%emt 0:00:12]} c5 {[%emt 0:04:26]} 16. Nd2 {[%emt 0:02:28]} Qc7 {[%emt 0:02:43]} 17. Nc4 {[%emt 0:02:24]} Rad8 {[%emt 0:01:27]} 18. Rad1 {[%emt 0:02:37]} d5 {[%emt 0:03:45]} 19. exd5 {[%emt 0:00:41]} Bxd5 {[%emt 0:03:55]} 20. Qe2 {[%emt 0:02:44]} Bxc4 {[%emt 0:03:08]} 21. Qxc4 {[%emt 0:00:08]} Rxd1 {[%emt 0:00:25]} 22. Rxd1 {[%emt 0:00:24]} Rc8 {[%emt 0:03:28]} 23. b3 {[%emt 0:00:17]} Bf8 {[%emt 0:01:20]} 24. Nd5 {[%emt 0:01:07]} Nxd5 {[%emt 0:00:19]} 25. Rxd5 {[%emt 0:00:33]} a5 {[%emt 0:01:24]} 26. f5 {[%emt 0:00:44]} Qe7 {[%emt 0:04:39]} 27. Bf2 {[%emt 0:00:43]} b6 {[%emt 0:00:36]} 28. Qd3 {[%emt 0:00:45]} Rc7 {[%emt 0:02:53]} 29. Bg3 {[%emt 0:02:19]} Rc6 {[%emt 0:03:50]} 30. fxg6+ {[%emt 0:03:46]} Kg8 {[%emt 0:01:19]} 31. Rd7 {[%emt 0:00:28]} Qe6 {[%emt 0:05:59]} 32. gxf7+ {[%emt 0:00:55]} Kg7 {[%emt 0:00:42]} 33. Rd8 {[%emt 0:02:15]} Rc8 {[%emt 0:04:05]} 34. Be5+ {[%emt 0:00:53]} 1-0

[Event "SVK Amateur-ch 2020"]
[Site "Topolcany"]
[Date "2020.07.13"]
[Round "7.13"]
[White "Trasakova, Adela"]
[Black "Holly, Andrej"]
[Result "0-1"]
[ECO "A96"]
[WhiteElo "1660"]
[BlackElo "2009"]
[Annotator "ChessBase"]
[PlyCount "116"]
[EventDate "2020.07.10"]
[EventType "swiss"]
[EventCountry "SVK"]
[SourceTitle "playchess.com"]
[Source "ChessBase"]
[SourceQuality "1"]
[TimeControl "3600+30"]

1. d4 {[%emt 0:00:00]} f5 {[%emt 0:00:00]} 2. Nf3 {[%emt 0:00:00]} e6 {[%emt 0:00:00]} 3. c4 {[%emt 0:00:03]} Nf6 {[%emt 0:00:00]} 4. g3 {[%emt 0:00:22]} Be7 {[%emt 0:00:00]} 5. Bg2 {[%emt 0:00:23]} O-O {[%emt 0:00:00]} 6. O-O {[%emt 0:00:12]} d6 {[%emt 0:00:09]} 7. Nc3 {[%emt 0:01:54]} a5 {[%emt 0:00:04]} 8. Qc2 {[%emt 0:02:00]} Nc6 {[%emt 0:00:11]} 9. e4 {[%emt 0:03:08]} Nb4 {[%emt 0:00:08]} 10. Qe2 {[%emt 0:00:51]} Nxe4 {[%emt 0:00:28]} 11. Nxe4 {[%emt 0:00:37]} fxe4 {[%emt 0:00:01]} 12. Qxe4 {[%emt 0:00:16]} e5 {[%emt 0:00:21]} 13. Ne1 {[%emt 0:11:05]} exd4 {[%emt 0:06:33]} 14. Qxd4 {[%emt 0:02:20]} Bf6 {[%emt 0:00:44]} 15. Qd2 {[%emt 0:03:13]} Be6 {[%emt 0:03:30]} 16. a3 {[%emt 0:06:27]} Nc6 {[%emt 0:01:25]} 17. Bd5 {[%emt 0:01:20]} Qd7 {[%emt 0:02:38]} 18. Ng2 {[%emt 0:02:31]} Nd4 {[%emt 0:01:06]} 19. Qd3 {[%emt 0:05:07]} Bxd5 {[%emt 0:03:50]} 20. cxd5 {[%emt 0:00:09]} Rae8 {[%emt 0:03:04]} 21. Bd2 {[%emt 0:05:31]} Qg4 {[%emt 0:07:45]} 22. f3 {[%emt 0:05:31]} Ne2+ {[%emt 0:03:00]} 23. Qxe2 {[%emt 0:02:04]} Rxe2 {[%emt 0:00:01]} 24. fxg4 {[%emt 0:00:02]} Rxd2 {[%emt 0:00:02]} 25. Nf4 {[%emt 0:00:58]} c6 {[%emt 0:03:11]} 26. Rad1 {[%emt 0:01:58]} Rxb2 {[%emt 0:02:14]} 27. dxc6 {[%emt 0:00:59]} bxc6 {[%emt 0:00:02]} 28. Rxd6 {[%emt 0:00:24]} c5 {[%emt 0:01:51]} 29. Ne6 {[%emt 0:03:46]} Rc8 {[%emt 0:01:40]} 30. g5 {[%emt 0:01:08]} Be5 {[%emt 0:04:59]} 31. Rd7 {[%emt 0:02:58]} c4 {[%emt 0:00:42]} 32. Rdf7 {[%emt 0:01:05]} Rbb8 {[%emt 0:01:53]} 33. R7f5 {[%emt 0:02:29]} Bd6 {[%emt 0:00:33]} 34. Rf7 {[%emt 0:01:42]} Be5 {[%emt 0:00:20]} 35. R7f5 {[%emt 0:00:05]} Bb2 {[%emt 0:01:19]} 36. Rf7 {[%emt 0:00:50]} Re8 {[%emt 0:00:40]} 37. Nc7 {[%emt 0:01:07]} Rf8 {[%emt 0:00:18]} 38. Rxf8+ {[%emt 0:00:57]} Rxf8 {[%emt 0:00:23]} 39. Rxf8+ {[%emt 0:00:02]} Kxf8 {[%emt 0:00:14]} 40. Nb5 {[%emt 0:00:31]} c3 {[%emt 0:00:26]} 41. Nd4 {[%emt 0:00:24]} Bxa3 {[%emt 0:00:08]} 42. Kf1 {[%emt 0:01:07]} Bb2 {[%emt 0:00:21]} 43. Ke2 {[%emt 0:00:31]} a4 {[%emt 0:00:12]} 44. Nc2 {[%emt 0:01:01]} a3 {[%emt 0:00:54]} 45. Nb4 {[%emt 0:00:19]} c2 {[%emt 0:00:46]} 46. Nxc2 {[%emt 0:00:05]} a2 {[%emt 0:00:04]} 47. Kf3 {[%emt 0:02:09]} a1=Q {[%emt 0:00:06]} 48. Nxa1 {[%emt 0:00:06]} Bxa1 {[%emt 0:00:04]} 49. Kg4 {[%emt 0:00:34]} g6 {[%emt 0:00:51]} 50. h4 {[%emt 0:00:41]} Ke7 {[%emt 0:00:06]} 51. h5 {[%emt 0:00:54]} Ke6 {[%emt 0:00:02]} 52. Kh3 {[%emt 0:01:09]} Kf5 {[%emt 0:00:04]} 53. Kh4 {[%emt 0:00:10]} Bb2 {[%emt 0:00:13]} 54. g4+ {[%emt 0:00:28]} Kf4 {[%emt 0:00:01]} 55. Kh3 {[%emt 0:00:16]} Kxg5 {[%emt 0:00:02]} 56. Kg3 {[%emt 0:00:28]} Be5+ {[%emt 0:00:02]} 57. Kh3 {[%emt 0:00:16]} Bd6 {[%emt 0:00:01]} 58. h6 {[%emt 0:00:29]} Bc7 {[%emt 0:00:10]} 0-1

[Event "SVK Amateur-ch 2020"]
[Site "Topolcany"]
[Date "2020.07.13"]
[Round "7.15"]
[White "Alexandrova, Angelina"]
[Black "Skrinar, Marek"]
[Result "1-0"]
[ECO "D78"]
[WhiteElo "1839"]
[BlackElo "1654"]
[Annotator "NA"]
[PlyCount "97"]
[EventDate "2020.07.10"]
[EventType "swiss"]
[EventCountry "SVK"]
[SourceTitle "playchess.com"]
[Source "ChessBase"]
[SourceQuality "1"]
[TimeControl "3600+30"]

1. Nf3 {[%emt 0:00:00]} Nf6 {[%emt 0:00:00]} 2. g3 {[%emt 0:00:00]} d5 {[%emt 0:00:20]} 3. d4 {[%emt 0:00:00]} g6 {[%emt 0:00:07]} 4. Bg2 {[%emt 0:00:00]} Bg7 {[%emt 0:00:09]} 5. c4 {[%emt 0:00:16]} c6 {[%emt 0:00:06]} 6. O-O {[%emt 0:00:16]} O-O {[%emt 0:00:13]} 7. Nbd2 {[%emt 0:00:26]} Bf5 {[%emt 0:01:18] 7...a5 gains popularity.} 8. b3 {[%emt 0:00:41]} Nbd7 {[%emt 0:01:33]} 9. Nh4 {[%emt 0:01:42] D78: Fianchetto Grünfeld: 6 0-0 c6.} Be6 {[%emt 0:00:21] [#]} 10. c5 $146 {[%emt 0:01:20]} ({Predecessor:} 10. e3 c5 11. Nhf3 h6 12. Bb2 Ne4 13. Qe2 Nxd2 14. Nxd2 dxc4 15. Nxc4 cxd4 16. Bxd4 Bxd4 17. exd4 Bxc4 18. bxc4 {1-0 (56) Ganguly,S (2622)-Harsha,B (2492) Douglas 2018}) 10... Re8 {[%emt 0:00:58]} ({Black should try} 10... Ne8 $17 11. Bb2 Nxc5 {[%mdl 64] Pin}) 11. f4 {[%emt 0:00:37]} Nf8 {[%emt 0:02:37]} 12. f5 {[%emt 0:02:03]} Bd7 {[%emt 0:00:14]} 13. e3 {[%emt 0:02:39]} e6 {[%emt 0:00:26]} 14. fxg6 {[%emt 0:01:29]} Nxg6 {[%emt 0:00:40]} 15. Nxg6 {[%emt 0:00:55]} fxg6 {[%emt 0:01:00]} 16. Nf3 {[%emt 0:05:22]} Rf8 {[%emt 0:06:52]} 17. Ne5 {[%emt 0:00:31]} Qc7 {[%emt 0:01:48]} 18. Bb2 {[%emt 0:05:32]} Be8 {[%emt 0:03:04]} 19. Qc2 {[%emt 0:05:12]} Bf7 {[%emt 0:02:48]} 20. Bh3 {[%emt 0:06:06]} Rae8 {[%emt 0:01:33]} 21. b4 {[%emt 0:02:36]} Nd7 {[%emt 0:01:28]} 22. Nxf7 {[%emt 0:02:36]} Rxf7 {[%emt 0:00:16]} 23. Rxf7 {[%emt 0:00:06]} Kxf7 {[%emt 0:00:06]} 24. Rf1+ {[%emt 0:00:35]} Kg8 {[%emt 0:00:39]} 25. Qf2 {[%emt 0:01:11]} (25. e4 $16) 25... Nf6 {[%emt 0:01:13]} 26. a4 {[%emt 0:02:23]} Ne4 {[%emt 0:01:46]} 27. Qc2 {[%emt 0:05:18]} Nxg3 {[%emt 0:02:22]} 28. hxg3 {[%emt 0:02:54]} Qxg3+ {[%emt 0:00:12]} 29. Bg2 {[%emt 0:00:12]} Qxe3+ {[%emt 0:00:14]} 30. Qf2 {[%emt 0:00:34]} Qxf2+ {[%emt 0:00:57]} 31. Rxf2 {[%emt 0:04:55]} e5 {[%emt 0:01:18]} 32. Re2 {[%emt 0:00:07]} e4 {[%emt 0:00:26]} 33. b5 {[%emt 0:00:23]} Bh6 {[%emt 0:02:45]} 34. Bh3 {[%emt 0:01:48]} Re7 {[%emt 0:00:24]} 35. Bc3 {[%emt 0:00:31]} Bf4 {[%emt 0:11:09]} 36. Ba5 {[%emt 0:02:27]} ({White should play} 36. Rb2 $16) 36... Bc7 $2 {[%emt 0:01:04]} (36... g5 $16) 37. Bxc7 {[%emt 0:01:45]} Rxc7 {[%emt 0:00:19]} 38. b6 {[%emt 0:00:34]} axb6 {[%emt 0:00:06]} 39. cxb6 {[%emt 0:00:05]} Re7 $18 {[%emt 0:00:46]} 40. Bc8 {[%emt 0:01:38]} Re8 {[%emt 0:02:41]} 41. Bxb7 {[%emt 0:00:15]} Rb8 {[%emt 0:00:07]} 42. Bxc6 {[%emt 0:00:15]} Rxb6 {[%emt 0:00:09]} 43. Bxd5+ {[%emt 0:00:28]} Kg7 {[%emt 0:00:09]} 44. Rxe4 {[%emt 0:00:23]} Rb1+ {[%emt 0:00:39]} 45. Kf2 {[%emt 0:02:21]} Kf6 {[%emt 0:00:24]} 46. Re6+ {[%emt 0:02:58]} Kg5 {[%emt 0:00:20]} 47. Bc6 {[%emt 0:01:36]} Rb2+ {[%emt 0:00:17]} 48. Re2 {[%emt 0:00:14]} Rb4 {[%emt 0:00:24]} 49. d5 {[%emt 0:01:32]} 1-0

[Event "SVK Amateur-ch 2020"]
[Site "Topolcany"]
[Date "2020.07.13"]
[Round "7.16"]
[White "Verbytskiy, Patrik"]
[Black "Galdik, Stefan"]
[Result "1-0"]
[ECO "B30"]
[WhiteElo "1824"]
[BlackElo "1583"]
[Annotator "NA"]
[PlyCount "65"]
[EventDate "2020.07.10"]
[EventType "swiss"]
[EventCountry "SVK"]
[SourceTitle "playchess.com"]
[Source "ChessBase"]
[SourceQuality "1"]
[TimeControl "3600+30"]

1. e4 {[%emt 0:00:00]} c5 {[%emt 0:00:00]} 2. Nf3 {[%emt 0:00:00]} Nc6 {[%emt 0:00:03]} 3. Bb5 {[%emt 0:00:00]} Qc7 {[%emt 0:00:02]} 4. Nc3 {[%emt 0:00:00]} e6 {[%emt 0:00:27]} 5. d4 {[%emt 0:00:04]} cxd4 {[%emt 0:00:36]} 6. Nxd4 {[%emt 0:00:05] B30: Sicilian: 2...Nc6 3 Bb5, lines without ...g6.} a6 {[%emt 0:00:10]} 7. Bxc6 {[%emt 0:00:08]} bxc6 {[%emt 0:01:07]} 8. O-O {[%emt 0:00:24]} Nf6 {[%emt 0:01:32] [#]} 9. Be3 $146 {[%emt 0:00:56]} ({Predecessor:} 9. Re1 d5 10. exd5 cxd5 11. Nf3 Be7 12. g3 O-O 13. Bf4 Qb6 14. Rb1 Bb7 15. Ne5 {0-1 (37) Gomes,J (1889)-Dias,I (2158) Lisbon 2018}) 9... c5 {[%emt 0:02:32]} 10. Nde2 {[%emt 0:00:25]} Bb7 {[%emt 0:00:16]} 11. f3 {[%emt 0:00:20]} Be7 {[%emt 0:01:01]} 12. Kh1 {[%emt 0:01:10]} O-O {[%emt 0:00:12]} 13. Qd2 {[%emt 0:01:19]} d6 {[%emt 0:01:30]} 14. Rad1 {[%emt 0:00:14]} Rad8 {[%emt 0:00:28]} 15. Qe1 {[%emt 0:01:10]} (15. b3 $15) 15... d5 {[%emt 0:00:25]} 16. exd5 {[%emt 0:00:08]} exd5 {[%emt 0:00:30]} 17. Bf4 $11 {[%emt 0:00:31]} Bd6 {[%emt 0:00:29]} (17... Qc6 18. Ng3) 18. Bg5 {[%emt 0:03:23]} Be7 {[%emt 0:00:20]} 19. Ng3 {[%emt 0:02:12]} Rfe8 {[%emt 0:01:28]} 20. Nf5 {[%emt 0:03:44] [#]} Bd6 $18 {[%emt 0:04:27]} (20... h6 $1 $17 {[%cal Rh6g5]} 21. Bh4 Bf8) 21. Qh4 {[%emt 0:00:24]} Be7 {[%emt 0:08:54]} 22. Nxg7 {[%emt 0:00:29]} Kxg7 {[%emt 0:00:30]} 23. Qh6+ {[%emt 0:01:58]} Kg8 {[%emt 0:01:09]} 24. Bxf6 {[%emt 0:00:03]} Bxf6 {[%emt 0:00:08]} 25. Qxf6 {[%emt 0:00:04]} Qd6 {[%emt 0:07:32]} 26. Ne4 {[%emt 0:00:22]} Qc7 {[%emt 0:04:17]} 27. Qg5+ {[%emt 0:01:07]} Kh8 {[%emt 0:00:30]} 28. Nf6 {[%emt 0:00:30]} Qe5 {[%emt 0:00:31]} 29. Qh6 {[%emt 0:01:03]} Qf5 {[%emt 0:00:30]} 30. Nxe8 {[%emt 0:00:30]} Rxe8 {[%emt 0:00:01]} 31. Rfe1 {[%emt 0:00:19]} Rg8 {[%emt 0:00:42]} 32. Qd6 {[%emt 0:02:33]} Qxc2 {[%emt 0:03:55]} 33. Qf6+ {[%emt 0:00:04]} 1-0

[Event "SVK Amateur-ch 2020"]
[Site "Topolcany"]
[Date "2020.07.13"]
[Round "7.17"]
[White "Tropp, Frantisek"]
[Black "Strachan, Jan"]
[Result "1/2-1/2"]
[ECO "B00"]
[WhiteElo "2040"]
[BlackElo "2130"]
[Annotator "RC"]
[PlyCount "23"]
[EventDate "2020.07.10"]
[EventType "swiss"]
[EventCountry "SVK"]
[SourceTitle "playchess.com"]
[Source "ChessBase"]
[SourceQuality "1"]
[TimeControl "3600+30"]

1. e4 {[%emt 0:00:00]} d6 {[%emt 0:00:00]} 2. d4 {[%emt 0:00:00]} Nf6 {[%emt 0:00:00]} 3. Bd3 {[%emt 0:00:00]} g6 {[%emt 0:00:10]} 4. Nf3 {[%emt 0:00:57]} Bg7 {[%emt 0:00:13]} 5. h3 {[%emt 0:00:19]} O-O {[%emt 0:00:10]} 6. O-O {[%emt 0:00:06]} Nc6 {[%emt 0:00:24]} 7. c3 {[%emt 0:00:23]} e5 {[%emt 0:00:29]} 8. dxe5 {[%emt 0:01:14]} Nxe5 {[%emt 0:01:10]} 9. Nxe5 {[%emt 0:00:22]} dxe5 {[%emt 0:00:11]} 10. Qe2 {[%emt 0:00:19]} Be6 {[%emt 0:01:23]} 11. Na3 {[%emt 0:00:18]} c6 {[%emt 0:01:51]} 12. Bg5 {[%emt 0:00:34]} 1/2-1/2

[Event "SVK Amateur-ch 2020"]
[Site "Topolcany"]
[Date "2020.07.13"]
[Round "7.17"]
[White "Kapec, Kristian"]
[Black "Janik, Marek Tobias"]
[Result "1/2-1/2"]
[ECO "B21"]
[WhiteElo "1803"]
[BlackElo "1549"]
[Annotator "NA"]
[PlyCount "27"]
[EventDate "2020.07.10"]
[EventType "swiss"]
[EventCountry "SVK"]
[SourceTitle "playchess.com"]
[Source "ChessBase"]
[SourceQuality "1"]
[TimeControl "3600+30"]

1. e4 {[%emt 0:00:00]} c5 {[%emt 0:00:00]} 2. d4 {[%emt 0:00:09]} cxd4 {[%emt 0:00:00]} 3. c3 {[%emt 0:00:00]} dxc3 {[%emt 0:00:00]} 4. Nxc3 {[%emt 0:00:00]} Nc6 {[%emt 0:00:00]} 5. Nf3 {[%emt 0:00:00]} e5 {[%emt 0:00:17]} 6. Bc4 {[%emt 0:00:00]} h6 {[%emt 0:00:39]} 7. Qe2 {[%emt 0:00:47]} Nf6 {[%emt 0:00:11]} 8. O-O {[%emt 0:00:05]} Be7 {[%emt 0:00:04]} 9. Rd1 {[%emt 0:00:10]} O-O {[%emt 0:01:14]} 10. Be3 {[%emt 0:01:07]} d6 {[%emt 0:00:36]} 11. a4 {[%emt 0:04:32]} Bg4 {[%emt 0:02:42]} 12. h3 {[%emt 0:00:48]} Bh5 {[%emt 0:00:28]} 13. Rd2 {[%emt 0:01:16]} Nd4 {[%emt 0:06:11]} 14. Bxd4 {[%emt 0:00:37]} 1/2-1/2

[Event "SVK Amateur-ch 2020"]
[Site "Topolcany"]
[Date "2020.07.13"]
[Round "7.18"]
[White "Skreno, Vladimir"]
[Black "Kucera, Michal"]
[Result "0-1"]
[ECO "D58"]
[WhiteElo "2126"]
[BlackElo "1991"]
[Annotator "ChessBase"]
[PlyCount "64"]
[EventDate "2020.07.10"]
[EventType "swiss"]
[EventCountry "SVK"]
[SourceTitle "playchess.com"]
[Source "ChessBase"]
[SourceQuality "1"]
[TimeControl "3600+30"]

1. d4 {[%emt 0:00:00]} Nf6 {[%emt 0:00:00]} 2. Nf3 {[%emt 0:00:00]} e6 {[%emt 0:00:00]} 3. Bg5 {[%emt 0:00:00]} h6 {[%emt 0:00:33]} 4. Bh4 {[%emt 0:00:25]} d5 {[%emt 0:00:41]} 5. e3 {[%emt 0:00:15]} Be7 {[%emt 0:00:16]} 6. c4 {[%emt 0:00:29]} b6 {[%emt 0:01:37]} 7. Nc3 {[%emt 0:06:40]} O-O {[%emt 0:00:49]} 8. cxd5 {[%emt 0:06:15]} exd5 {[%emt 0:00:48]} 9. Rc1 {[%emt 0:03:30]} Bb7 {[%emt 0:06:37]} 10. Bxf6 {[%emt 0:03:31]} Bxf6 {[%emt 0:04:11]} 11. b4 {[%emt 0:00:16]} c5 {[%emt 0:11:29]} 12. bxc5 {[%emt 0:01:13]} bxc5 {[%emt 0:00:06]} 13. Qb3 {[%emt 0:01:04]} Bc6 {[%emt 0:01:06]} 14. Be2 {[%emt 0:06:17]} c4 {[%emt 0:01:15]} 15. Qc2 {[%emt 0:00:30]} Nd7 {[%emt 0:01:59]} 16. O-O {[%emt 0:00:19]} Qc7 {[%emt 0:00:36]} 17. Rfd1 {[%emt 0:11:30]} Rfe8 {[%emt 0:08:14]} 18. Bf1 {[%emt 0:00:06]} Nb6 {[%emt 0:00:26]} 19. g3 {[%emt 0:02:12]} Rab8 {[%emt 0:01:50]} 20. Bg2 {[%emt 0:01:04]} Qd7 {[%emt 0:00:36]} 21. Rb1 {[%emt 0:04:40]} Na4 {[%emt 0:01:00]} 22. Nd2 {[%emt 0:01:15]} Nxc3 {[%emt 0:03:01]} 23. Qxc3 {[%emt 0:00:02]} Rb6 {[%emt 0:00:15]} 24. Rbc1 {[%emt 0:05:42]} Ba4 {[%emt 0:02:17]} 25. Re1 {[%emt 0:01:17]} Reb8 {[%emt 0:02:50]} 26. e4 {[%emt 0:03:58]} Be7 {[%emt 0:02:09]} 27. a3 {[%emt 0:01:25]} dxe4 {[%emt 0:04:53]} 28. Nxe4 {[%emt 0:00:22]} Rc8 {[%emt 0:03:19]} 29. Qa5 {[%emt 0:04:33]} Rb2 {[%emt 0:04:13]} 30. Red1 {[%emt 0:03:07]} Bxd1 {[%emt 0:00:21]} 31. Rxd1 {[%emt 0:00:11]} Rcb8 {[%emt 0:01:15]} 32. Nd2 {[%emt 0:00:53]} Qxd4 {[%emt 0:01:13]} 0-1